bitfinex-derivatives/quotes_ETHF0:USTF0_20250326
["timestamp","ask_amount","ask_price","bid_price","bid_amount"]
[1742994558320,1.3653,2060.7,2060.4,44.0078]
[1742994558628,0.97056,2060.4,2060.3,0.00727608]
[1742994558828,0.97061,2060.3,2060.1,4.5893]
[1742994559024,2.91261,2060.3,2060.2,0.97064]
[1742994559420,1.942,2060.3,2060.2,2.35314]
[1742994561228,1.2854,2060.3,2060.2,2.35314]
[1742994562429,2.25601,2060.3,2060.2,2.35314]
[1742994562629,1.2854,2060.3,2060.2,2.35314]
[1742994563027,1.2854,2060.3,2060.1,46.35998]
[1742994563329,1.61096,2060.2,2060.1,41.77071]
[1742994563526,2.29336,2060.2,2060.1,41.77071]
[1742994564527,2.29336,2060.2,2060.1,43.06161]
[1742994564729,5.50116,2060.2,2060.1,43.06161]
[1742994566324,4.5305,2060.2,2060.1,43.06161]
[1742994566730,5.8098,2060.2,2060.1,43.06161]
[1742994567834,6.78046,2060.2,2060.1,43.06161]
[1742994569733,6.78046,2060.2,2060.1,41.77071]
[1742994570334,6.78046,2060.2,2060.1,43.06371]
[1742994573644,6.78046,2060.2,2060.1,42.093]
[1742994574339,6.78046,2060.2,2060.1,40.8]
[1742994574843,6.78046,2060.2,2060.1,42.1791]
[1742994577635,6.78046,2060.2,2060.1,43.14981]
[1742994577840,6.78046,2060.2,2060.1,42.1791]
[1742994578343,6.78046,2060.2,2060.1,1.3791]
[1742994583743,6.09806,2060.2,2060.1,2.34981]
[1742994584242,2.89026,2060.2,2060.1,2.34981]
[1742994585039,2.24996,2060.2,2060.1,2.34981]
[1742994587047,0.97071,2060.1,2060.0,42.48638608]
[1742994587349,2.37571,2060.1,2060.0,43.84508608]
[1742994588848,2.37571,2060.1,2060.0,3.04508608]
[1742994589044,3.03321,2060.1,2060.0,3.04508608]
[1742994596041,3.03321,2060.1,2060.0,0.00727608]
[1742994596447,3.71151,2060.1,2060.0,0.97802608]
[1742994596647,3.71151,2060.1,2060.0,0.00727608]
[1742994597046,3.71151,2060.1,2060.0,1.33627608]
[1742994597550,3.71151,2060.1,2060.0,0.00727608]
[1742994597948,5.8508,2060.1,2059.7,1.64775]
[1742994598148,0.97085,2059.8,2059.7,2.97675]
[1742994598549,0.97085,2059.8,2059.7,42.129]
[1742994598852,0.97085,2059.8,2059.7,40.8]
[1742994599046,3.69625,2059.8,2059.7,40.8]
[1742994599246,0.97094,2059.6,2059.5,4.18605608]
[1742994599446,0.97094,2059.6,2059.5,4.88955608]
[1742994599655,2.38683,2059.7,2059.6,0.97094]
[1742994600041,5.5368,2060.1,2059.7,2.42724]
[1742994600242,0.9708,2060.0,2059.9,0.97076]
[1742994600747,2.3528,2060.0,2059.9,2.25426]
[1742994600962,2.3528,2060.0,2059.9,43.05426]
[1742994602264,2.3528,2060.0,2059.6,2.42735]
[1742994602265,0.97094,2059.7,2059.6,0.97087]
[1742994603760,0.97094,2059.7,2059.6,3.72007]
[1742994604561,0.97094,2059.6,2059.5,4.18602608]
[1742994604763,0.97094,2059.6,2059.5,4.83692608]
[1742994605760,0.97094,2059.6,2059.5,45.63692608]
[1742994605961,2.25564,2059.6,2059.5,45.63692608]
[1742994610763,5.46344,2059.6,2059.5,0.00727608]
[1742994610959,6.13564,2059.6,2059.5,0.00727608]
[1742994611561,8.63564,2059.6,2059.5,0.00727608]
[1742994611859,6.13564,2059.6,2059.5,0.00727608]
[1742994615868,8.71605016,2059.6,2059.5,0.00727608]
[1742994616272,8.63564,2059.6,2059.5,0.00727608]
[1742994617868,6.13564,2059.6,2059.5,0.00727608]
[1742994618664,5.46344,2059.6,2059.5,0.97826608]
[1742994619073,5.46344,2059.6,2059.5,2.33006608]
[1742994619374,5.46344,2059.6,2059.5,1.35907608]
[1742994619972,6.11334,2059.6,2059.5,1.35907608]
[1742994621176,6.11334,2059.6,2059.5,0.00727608]
[1742994622173,8.61334,2059.6,2059.5,0.00727608]
[1742994622374,8.69374535,2059.6,2059.5,6.08e-06]
[1742994624979,0.97113,2059.2,2059.1,1.3722]
[1742994625178,4.08213,2059.2,2059.1,1.3722]
[1742994625675,5.48613,2059.2,2059.1,1.3722]
[1742994635774,5.48613,2059.2,2059.1,2.0779]
[1742994636076,4.08213,2059.2,2059.1,3.04908]
[1742994636577,4.08213,2059.2,2059.1,2.0779]
[1742994636785,5.36723,2059.2,2059.1,2.0779]
[1742994639976,0.97113,2059.2,2059.1,2.0779]
[1742994640182,2.32083,2059.2,2059.1,2.0779]
[1742994641282,2.32083,2059.2,2059.1,3.04898]
[1742994641487,2.32083,2059.2,2059.1,2.0779]
[1742994641978,2.32083,2059.2,2059.1,3.04898]
[1742994642777,0.00727608,2059.4,2059.3,0.97099]
[1742994643377,0.00727608,2059.4,2059.3,2.36739]
[1742994643581,0.97821608,2059.4,2059.3,2.36739]
[1742994645480,0.00727608,2059.4,2059.3,2.36739]
[1742994645681,0.97821608,2059.4,2059.3,2.36739]
[1742994646180,0.00727608,2059.4,2059.3,2.36739]
[1742994647882,0.97082,2059.7,2059.6,0.97084]
[1742994648082,0.97074,2059.9,2059.8,0.97075]
[1742994648581,0.97074,2059.9,2059.7,5.2847]
[1742994648582,0.97067,2060.0,2059.9,0.9707]
[1742994648778,2.26417,2060.0,2059.9,0.9707]
[1742994650282,0.9707,2059.9,2059.8,2.3735]
[1742994650581,2.2642,2059.9,2059.8,1.4028]
[1742994651483,0.97075,2059.8,2059.7,0.6741]
[1742994651692,2.37345,2059.8,2059.7,2.0834]
[1742994652591,2.37345,2059.8,2059.7,1.4093]
[1742994652786,0.97084,2059.6,2059.5,2.33666]
[1742994654690,0.97084,2059.6,2059.5,3.67266]
[1742994658201,2.37354,2059.7,2059.6,0.97084]
[1742994658499,2.37354,2059.7,2059.6,2.36044]
[1742994660496,2.3735,2059.7,2059.6,2.36044]
[1742994660994,0.97084,2059.6,2059.5,2.33668]
[1742994661194,2.36364,2059.6,2059.5,3.63598]
[1742994664403,2.36364,2059.6,2059.5,2.92828]
[1742994664703,0.97089,2059.5,2059.4,4.17871]
[1742994664999,2.33449,2059.5,2059.4,5.50231]
[1742994666199,2.33449,2059.5,2059.1,4.17885]
[1742994666200,0.97103,2059.2,2059.1,4.17885]
[1742994666396,0.97103,2059.2,2059.1,4.85975]
[1742994666596,0.97103,2059.2,2059.1,0.6809]
[1742994666997,0.97103,2059.2,2059.1,1.65198]
[1742994667197,0.97103,2059.2,2059.1,2.94728]
[1742994667398,0.97103,2059.2,2059.1,6.15508]
[1742994668005,2.3867,2059.3,2059.2,0.97103]
[1742994668203,1.4157,2059.3,2059.2,2.26633]
[1742994668598,2.38669,2059.3,2059.2,2.26633]
[1742994668800,2.38669,2059.3,2059.2,2.94883]
[1742994668998,1.4157,2059.3,2059.2,2.94883]
[1742994669199,2.38669,2059.3,2059.2,2.94883]
[1742994672710,1.4157,2059.3,2059.2,2.94883]
[1742994673112,2.38669,2059.3,2059.2,2.94883]
[1742994673508,1.4157,2059.3,2059.2,2.94883]
[1742994673708,2.38669,2059.3,2059.2,2.94883]
[1742994674111,1.4157,2059.3,2059.2,2.94883]
[1742994674299,2.38669,2059.3,2059.2,2.94883]
[1742994674505,2.38669,2059.3,2059.2,2.26633]
[1742994674714,2.38669,2059.3,2059.2,1.2953]
[1742994674914,2.38669,2059.3,2059.2,2.26633]
[1742994675614,0.97103,2059.2,2059.1,4.85978]
[1742994675807,2.96333,2059.2,2059.1,6.24288]
[1742994676114,0.97108,2059.1,2059.0,0.97111]
[1742994676415,2.29038,2059.1,2059.0,5.56201]
[1742994678414,1.3193,2059.1,2059.0,5.56201]
[1742994678818,2.29038,2059.1,2059.0,5.56201]
[1742994679718,1.3193,2059.1,2059.0,5.56201]
[1742994679920,0.6805,2059.5,2059.4,0.97094]
[1742994680118,0.97094,2059.4,2059.3,3.2078]
[1742994680423,0.97103,2059.2,2059.1,2.33026]
[1742994680919,0.97103,2059.2,2059.1,1.3592]
[1742994681316,2.28113,2059.2,2059.1,1.3592]
[1742994681917,2.95863,2059.2,2059.1,2.33028]
[1742994682112,2.95863,2059.2,2059.1,1.3592]
[1742994682515,2.95863,2059.2,2059.1,2.33028]
[1742994683020,2.95863,2059.2,2059.1,1.3592]
[1742994683811,2.95863,2059.2,2059.1,2.33028]
[1742994684618,2.95863,2059.2,2059.1,1.3592]
[1742994684808,2.95863,2059.2,2059.1,2.33028]
[1742994690319,2.28113,2059.2,2059.1,2.33028]
[1742994690518,2.28113,2059.2,2059.1,1.3592]
[1742994690720,0.97108,2059.1,2059.0,3.2078]
[1742994690921,2.29088,2059.1,2059.0,4.17893]
[1742994691120,2.29088,2059.1,2058.9,43.85510608]
[1742994691121,0.97113,2059.0,2058.9,43.85510608]
[1742994691421,2.97523,2059.0,2058.9,43.85510608]
[1742994692326,2.29093,2059.0,2058.9,43.85510608]
[1742994696429,1.3198,2059.0,2058.9,43.85510608]
[1742994696818,2.29093,2059.0,2058.9,43.85510608]
[1742994697018,1.3198,2059.0,2058.9,43.85510608]
[1742994697221,1.66260608,2059.2,2059.1,0.97108]
[1742994697525,1.66260608,2059.2,2059.1,4.17888]
[1742994697526,2.94270608,2059.2,2059.1,4.17888]
[1742994697726,1.97167608,2059.2,2059.1,4.17888]
[1742994697926,2.94270608,2059.2,2059.1,4.17888]
[1742994700730,0.00727608,2059.2,2059.1,4.17888]
[1742994700926,0.00727608,2059.2,2059.1,4.85778]
[1742994703226,0.00727608,2059.2,2059.1,6.16398]
[1742994707233,1.2854,2059.4,2059.3,0.97099]
[1742994707629,0.97075,2059.8,2059.7,0.9708]
[1742994708834,2.36255,2059.8,2059.7,2.3425]
[1742994709331,1.3918,2059.8,2059.7,2.3425]
[1742994709528,1.3918,2059.8,2059.7,3.028]
[1742994713432,2.36255,2059.8,2059.7,0.9708]
[1742994714533,0.9708,2059.7,2059.6,4.17861]
[1742994714832,0.97088,2059.6,2059.4,0.97094]
[1742994715032,2.32609,2059.5,2059.4,0.97094]
[1742994717436,0.97094,2059.4,2059.3,4.17875]
[1742994717633,3.59994,2059.4,2059.3,4.17875]
[1742994720638,3.59994,2059.4,2059.3,4.17879]
[1742994720838,3.59994,2059.4,2059.3,3.2078]
[1742994723140,3.59994,2059.4,2059.3,4.17879]
[1742994723638,3.59994,2059.4,2059.3,3.2078]
[1742994725033,3.59994,2059.4,2059.3,4.17879]
[1742994727430,3.59994,2059.4,2059.3,3.2078]
[1742994743750,3.59994,2059.4,2059.3,4.5872]
[1742994744753,3.59994,2059.4,2059.3,1.3794]
[1742994744962,0.97099,2059.3,2059.2,0.6878]
[1742994745259,2.30579,2059.3,2059.2,0.6878]
[1742994745863,1.3348,2059.3,2059.0,1.6648]
[1742994746052,0.97108,2059.1,2059.0,2.3478]
[1742994746359,0.97108,2059.1,2059.0,1.3767]
[1742994747358,0.97108,2059.1,2059.0,2.7288]
[1742994747558,0.97108,2059.1,2059.0,3.69993]
[1742994748059,0.97108,2059.1,2059.0,2.7288]
[1742994748654,1.66418,2059.1,2059.0,2.7288]
[1742994749862,0.97113,2059.0,2058.9,40.80727608]
[1742994750162,2.25293,2059.0,2058.9,1.37557608]
[1742994757368,0.97117,2058.9,2058.8,40.8]
[1742994757570,0.97122,2058.8,2058.7,2.723]
[1742994757870,1.61022,2058.8,2058.7,2.723]
[1742994758073,1.61022,2058.8,2058.7,43.523]
[1742994758569,1.61022,2058.8,2058.7,2.723]
[1742994758773,0.97127,2058.7,2058.6,3.2078]
[1742994758965,2.28917,2058.7,2058.6,4.6004]
[1742994759262,2.28917,2058.7,2058.6,45.4004]
[1742994759466,2.28917,2058.7,2058.6,1.3926]
[1742994759664,2.28917,2058.7,2058.6,2.0676]
[1742994760154,2.28917,2058.7,2058.6,6.24672]
[1742994760360,2.28917,2058.7,2058.6,6.93422]
[1742994761461,0.97127,2058.7,2058.6,6.93422]
[1742994761970,0.97127,2058.7,2058.6,47.73422]
[1742994763570,0.97127,2058.7,2058.6,6.93422]
[1742994768368,0.97127,2058.7,2058.6,5.9629]
[1742994768569,0.97127,2058.7,2058.6,6.93422]
[1742994768770,2.32697,2058.7,2058.6,6.93422]
[1742994771573,0.00727608,2059.0,2058.9,0.97117]
[1742994771775,48.51606,2060.8,2058.9,0.97117]
[1742994771776,0.97079,2059.8,2059.0,4.85565]
[1742994771977,0.9708,2059.7,2059.6,4.17861]
[1742994772177,0.94182972,2059.7,2059.6,4.17861]
[1742994772676,0.94182972,2059.7,2059.6,3.9099]
[1742994772869,0.94182972,2059.7,2059.6,44.7099]
[1742994773077,0.94182972,2059.7,2059.6,47.00584]
[1742994775474,0.94182972,2059.7,2059.6,6.20584]
[1742994780178,0.00727608,2059.9,2059.8,0.97075]
[1742994780579,0.97797608,2059.9,2059.8,0.97075]
[1742994780782,0.97797608,2059.9,2059.7,1.3581]
[1742994780783,0.97075,2059.8,2059.7,2.32886]
[1742994780976,0.97075,2059.8,2059.7,1.3581]
[1742994781177,3.05675,2059.8,2059.7,1.3581]
[1742994781687,0.9708,2059.7,2059.6,0.7021]
[1742994781980,2.386,2059.7,2059.6,2.0602]
[1742994782184,1.4152,2059.7,2059.5,0.7071]
[1742994782373,0.97089,2059.5,2059.4,0.97821608]
[1742994782587,0.97089,2059.5,2059.4,2.98331608]
[1742994782785,0.97089,2059.5,2059.4,2.01237608]
[1742994783401,2.34149,2059.5,2059.4,2.01237608]
[1742994783596,2.34149,2059.5,2059.4,0.65987608]
[1742994784096,2.34149,2059.5,2059.4,0.00727608]
[1742994785996,8.72508,2059.5,2058.9,3.2078]
[1742994786298,4.85518,2059.2,2058.6,3.8601]
[1742994786498,0.97127,2058.7,2058.6,3.83112972]
[1742994787388,2.29717,2058.7,2058.6,0.62332972]
[1742994787601,2.29717,2058.7,2058.6,3.83112972]
[1742994787799,2.29717,2058.7,2058.6,5.10972972]
[1742994789396,2.29717,2058.7,2058.6,6.08104972]
[1742994790097,2.29717,2058.7,2058.6,5.10972972]
[1742994791205,2.29717,2058.7,2058.6,6.08104972]
[1742994792703,0.00727608,2058.9,2058.7,0.97124]
[1742994792902,0.00727608,2058.9,2058.8,1.66772]
[1742994793099,0.00727608,2058.9,2058.8,42.46772]
[1742994796603,3.2078,2059.6,2058.8,43.9965]
[1742994796800,2.25152,2059.5,2059.4,0.97094]
[1742994797001,1.2806,2059.5,2059.4,3.03054]
[1742994797199,4.17867,2059.6,2059.5,0.97089]
[1742994797395,0.97087,2059.6,2059.5,2.36459]
[1742994798097,1.2928,2059.7,2059.5,2.36459]
[1742994798098,2.26363,2059.7,2059.6,0.97084]
[1742994798303,1.2928,2059.7,2059.6,5.57234]
[1742994798507,2.2636,2059.7,2059.6,5.57234]
[1742994800698,2.2636,2059.7,2059.6,4.6015]
[1742994800899,0.97089,2059.5,2059.4,0.68067608]
[1742994801102,0.97089,2059.5,2059.4,0.00727608]
[1742994801708,2.35089,2059.5,2059.4,0.00727608]
[1742994804109,2.35089,2059.5,2059.4,0.97821608]
[1742994804309,2.35089,2059.5,2059.4,0.00727608]
[1742994807921,5.55869,2059.5,2059.4,0.00727608]
[1742994817023,5.55869,2059.5,2059.4,6.08e-06]
[1742994817216,8.05869,2059.5,2059.4,6.08e-06]
[1742994817421,8.13895192,2059.5,2059.4,6.08e-06]
[1742994817814,8.13895161,2059.5,2059.4,6.08e-06]
[1742994818019,18.00895161,2059.5,2059.4,6.08e-06]
[1742994818715,15.42869,2059.5,2059.4,6.08e-06]
[1742994819931,0.97108,2059.1,2059.0,2.0716]
[1742994820131,0.97108,2059.1,2059.0,0.64152972]
[1742994820631,0.97108,2059.1,2059.0,1.61265972]
[1742994821131,0.97108,2059.1,2059.0,0.64152972]
[1742994824227,2.27048,2059.1,2059.0,0.64152972]
[1742994829226,2.27048,2059.1,2059.0,1.61265972]
[1742994829533,2.27048,2059.1,2059.0,0.64152972]
[1742994830336,2.27048,2059.1,2059.0,1.61265972]
[1742994830537,2.27048,2059.1,2059.0,0.64152972]
[1742994832833,2.27048,2059.1,2059.0,1.61265972]
[1742994833034,2.27048,2059.1,2059.0,0.64152972]
[1742994834325,0.97117,2058.9,2058.8,0.00727608]
[1742994834531,0.97117,2058.9,2058.8,0.69257608]
[1742994834932,2.24867,2058.9,2058.8,0.69257608]
[1742994836030,2.24867,2058.9,2058.8,1.97027608]
[1742994843837,1.2775,2058.9,2058.8,1.97027608]
[1742994845842,2.24867,2058.9,2058.8,1.97027608]
[1742994849652,1.2775,2058.9,2058.8,0.00727608]
[1742994850643,2.24867,2058.9,2058.8,1.38767608]
[1742994851052,2.24867,2058.9,2058.8,0.00727608]
[1742994851949,2.24867,2058.9,2058.8,1.36437608]
[1742994854141,2.24867,2058.9,2058.8,0.00727608]
[1742994854351,2.24867,2058.9,2058.8,1.36437608]
[1742994855650,2.24867,2058.9,2058.8,0.00727608]
[1742994856349,2.24867,2058.9,2058.8,1.31517608]
[1742994857950,2.24867,2058.9,2058.8,42.11517608]
[1742994858854,2.24867,2058.9,2058.8,1.31517608]
[1742994859052,5.45647,2058.9,2058.8,0.00727608]
[1742994860152,2.42822,2058.7,2058.3,3.2078]
[1742994860354,0.9715,2058.2,2058.1,3.65384]
[1742994860553,0.9715,2058.2,2058.1,3.63972701]
[1742994860854,0.9715,2058.2,2058.1,44.43972701]
[1742994861054,0.9715,2058.2,2058.1,43.46818701]
[1742994861842,0.97155,2058.1,2058.0,4.2078]
[1742994862042,3.63365,2058.1,2058.0,1.0]
[1742994862246,3.63365,2058.1,2058.0,2.3321]
[1742994862457,3.63365,2058.1,2058.0,43.7961]
[1742994863253,2.96845,2058.1,2058.0,43.7961]
[1742994864854,2.96845,2058.1,2058.0,2.9961]
[1742994866651,2.31515,2058.1,2058.0,2.9961]
[1742994868360,2.31515,2058.1,2058.0,3.9677]
[1742994868554,2.31515,2058.1,2058.0,2.9961]
[1742994868859,1.31515,2058.1,2058.0,2.9961]
[1742994869055,2.2867,2058.1,2058.0,2.9961]
[1742994869251,2.2867,2058.1,2058.0,3.9677]
[1742994869458,2.2867,2058.1,2058.0,2.9961]
[1742994869956,0.00727608,2058.4,2058.1,2.42889]
[1742994870260,0.97146,2058.4,2058.3,4.17926]
[1742994870462,0.97146,2058.4,2058.3,4.81856]
[1742994870654,0.97146,2058.4,2058.3,45.3251]
[1742994871061,0.97146,2058.4,2058.3,46.7251]
[1742994871362,0.97146,2058.4,2058.0,4.2078]
[1742994871557,0.97155,2058.1,2058.0,5.81866]
[1742994871860,0.97155,2058.1,2058.0,46.60454701]
[1742994872563,0.97155,2058.1,2058.0,46.60458701]
[1742994872755,0.97155,2058.1,2058.0,6.91098701]
[1742994873351,0.97155,2058.1,2058.0,3.70318701]
[1742994873557,0.97155,2058.1,2058.0,0.98588701]
[1742994874250,2.25475,2058.1,2058.0,0.98588701]
[1742994878063,4.75475,2058.1,2058.0,0.98588701]
[1742994878254,0.9716,2058.0,2057.9,3.09e-06]
[1742994878454,2.3653,2058.0,2057.9,3.09e-06]
[1742994883872,2.3653,2058.0,2057.9,1.41130309]
[1742994884562,2.3653,2058.0,2057.9,2.74890309]
[1742994884757,2.3653,2058.0,2057.9,3.72055309]
[1742994884962,2.3653,2058.0,2057.9,2.74890309]
[1742994885363,2.3653,2058.0,2057.9,3.72055309]
[1742994885569,2.3653,2058.0,2057.9,2.74890309]
[1742994886859,2.3653,2058.0,2057.9,3.72055309]
[1742994887370,2.3653,2058.0,2057.9,2.74890309]
[1742994891876,2.3653,2058.0,2057.9,3.72055309]
[1742994892080,2.3653,2058.0,2057.9,2.74890309]
[1742994892672,2.3653,2058.0,2057.9,3.72055309]
[1742994892873,2.3653,2058.0,2057.9,2.74890309]
[1742994895176,0.9716,2058.0,2057.9,3.72055309]
[1742994896187,2.3004,2058.1,2058.0,0.9716]
[1742994896376,0.97155,2058.2,2058.1,0.97151]
[1742994896578,2.30035,2058.2,2058.1,0.97151]
[1742994897274,2.30035,2058.2,2058.1,4.17931]
[1742994900800,0.97155,2058.1,2058.0,2.25496]
[1742994900998,2.27565,2058.1,2058.0,2.25496]
[1742994901496,2.27565,2058.1,2058.0,1.2834]
[1742994901687,2.27565,2058.1,2058.0,2.255]
[1742994903100,0.97155,2058.1,2058.0,2.255]
[1742994904000,2.27565,2058.2,2058.1,0.97155]
[1742994904203,2.27565,2058.2,2058.1,2.28685]
[1742994904997,2.27565,2058.2,2058.1,5.49465]
[1742994908703,2.27565,2058.2,2058.1,1.3153]
[1742994909102,2.27565,2058.2,2058.1,2.28685]
[1742994909404,0.97155,2058.1,2058.0,1.61676]
[1742994909707,2.31835,2058.1,2058.0,3.00486]
[1742994920111,0.9716,2058.0,2057.9,1.64801309]
[1742994920316,2.3475,2058.0,2057.9,3.09e-06]
[1742994922405,5.5553,2058.0,2057.9,3.09e-06]
[1742994927008,15.4253,2058.0,2057.9,3.09e-06]
[1742994927313,17.9253,2058.0,2057.9,3.09e-06]
[1742994927704,18.5373,2058.0,2057.9,3.09e-06]
[1742994928017,8.6673,2058.0,2057.9,3.09e-06]
[1742994933813,11.1673,2058.0,2057.9,3.09e-06]
[1742994934511,11.24745435,2058.0,2057.9,3.09e-06]
[1742994935713,0.97193,2057.3,2057.2,1.3735]
[1742994935919,4.08393,2057.3,2057.2,2.7789]
[1742994936420,4.08393,2057.3,2057.2,2.1015]
[1742994936621,5.42683,2057.3,2057.2,2.1015]
[1742994937914,5.42683,2057.3,2057.2,3.07348]
[1742994938111,5.42683,2057.3,2057.2,2.1015]
[1742994942922,5.42683,2057.3,2057.2,3.07348]
[1742994943123,5.42683,2057.3,2057.2,2.1015]
[1742994943422,5.42683,2057.3,2057.2,3.07348]
[1742994945815,5.42683,2057.3,2057.2,2.1015]
[1742994946015,5.42683,2057.3,2057.2,3.07348]
[1742994946211,5.42683,2057.3,2057.2,2.1015]
[1742994953327,0.97202,2057.1,2057.0,0.00727608]
[1742994953524,0.97202,2057.1,2056.2,2.43112]
[1742994953525,2.43047,2056.8,2056.4,3.2078]
[1742994953731,2.43047,2056.8,2056.2,2.43113]
[1742994953732,0.97231,2056.6,2056.5,0.97228]
[1742994954038,4.09621,2056.7,2056.6,0.689]
[1742994954223,0.97245,2056.2,2056.1,3.2078]
[1742994954427,3.8359,2056.6,2056.1,3.2078]
[1742994954732,3.8359,2056.6,2056.2,41.7724]
[1742994954733,0.97241,2056.3,2056.2,41.7724]
[1742994955050,0.97241,2056.3,2056.2,42.39765331]
[1742994955529,0.97241,2056.3,2056.2,44.92047642]
[1742994956125,0.00729395,2056.4,2056.3,0.9724]
[1742994956327,0.00729395,2056.4,2056.3,2.78702311]
[1742994956631,0.97964395,2056.4,2056.3,3.41227642]
[1742994957236,0.97964395,2056.4,2056.3,44.21227642]
[1742994957433,0.97964395,2056.4,2056.3,44.89907642]
[1742994958327,0.00729395,2056.4,2056.3,44.89907642]
[1742994961043,0.97964395,2056.4,2056.3,44.89907642]
[1742994961745,0.97964395,2056.4,2056.3,44.89865823]
[1742994962038,0.00729395,2056.4,2056.3,44.89865823]
[1742994962239,0.00729395,2056.4,2056.3,47.39865823]
[1742994962434,0.9722,2056.8,2056.7,0.97215]
[1742994962633,0.9722,2056.8,2056.7,4.17995]
[1742994962836,2.3469,2056.8,2056.7,3.2078]
[1742994963338,2.3469,2056.8,2056.7,4.5594]
[1742994963646,2.3469,2056.8,2056.7,5.53161]
[1742994964335,2.3469,2056.8,2056.7,4.5594]
[1742994965538,2.3469,2056.8,2056.7,5.2223]
[1742994965740,1.3747,2056.8,2056.7,6.19451]
[1742994965941,2.34687,2056.8,2056.7,6.19451]
[1742994966137,0.68049395,2057.0,2056.7,6.19451]
[1742994966441,0.00729395,2057.0,2056.9,0.97212]
[1742994966649,0.97936395,2057.0,2056.9,3.43136073]
[1742994966936,0.97936395,2057.0,2056.9,43.72532]
[1742994967337,0.97936395,2057.0,2056.9,42.7532]
[1742994967542,0.97936395,2057.0,2056.9,40.8]
[1742994967742,3.06576395,2057.0,2056.9,40.8]
[1742994968341,0.97212,2056.9,2056.8,1.327]
[1742994968641,2.36662,2056.9,2056.8,1.327]
[1742994968845,2.36662,2056.9,2056.8,42.127]
[1742994969039,2.36662,2056.9,2056.8,40.8]
[1742994969239,2.36662,2056.9,2056.8,42.127]
[1742994970447,2.36662,2056.9,2056.8,43.09917]
[1742994970643,2.36662,2056.9,2056.8,42.127]
[1742994971953,2.36662,2056.9,2056.8,1.327]
[1742994975252,2.36662,2056.9,2056.8,2.29917]
[1742994975450,2.36662,2056.9,2056.8,1.327]
[1742994976248,2.36662,2056.9,2056.8,1.83364207]
[1742994978145,2.36662,2056.9,2056.8,1.327]
[1742994979250,0.97226,2056.6,2056.5,0.00729395]
[1742994979450,0.97226,2056.6,2056.5,1.21093107]
[1742994979645,0.97226,2056.6,2056.5,42.63659142]
[1742994979845,0.97226,2056.6,2056.5,0.6329543]
[1742994980046,0.97226,2056.6,2056.5,0.00729395]
[1742994980548,4.18006,2056.6,2056.5,0.00729395]
[1742994980947,7.33506,2056.6,2056.5,0.00729395]
[1742994985558,7.33506,2056.6,2056.5,3.95e-06]
[1742994986352,0.9725,2056.1,2056.0,44.0078]
[1742994986848,0.9725,2056.1,2056.0,45.4076]
[1742994987247,2.3284,2056.1,2056.0,45.4076]
[1742994988155,2.3284,2056.1,2056.0,40.8]
[1742994988454,2.3284,2056.1,2055.5,0.6919]
[1742994988455,0.97264,2055.8,2055.7,3.2078]
[1742994989061,2.96564,2055.8,2055.7,3.2078]
[1742994989865,0.97264,2055.9,2055.8,0.97262]
[1742994990162,2.29434,2055.9,2055.8,1.3713]
[1742994991457,0.97264,2055.8,2055.7,3.9021]
[1742994991761,2.29434,2055.8,2055.7,3.9021]
[1742994992454,0.97264,2055.9,2055.8,0.97261]
[1742994992654,0.97264,2055.9,2055.8,1.4114]
[1742994992859,0.97264,2055.9,2055.8,2.38404]
[1742994993057,0.97264,2055.9,2055.8,1.4114]
[1742994997164,0.97264,2055.9,2055.8,2.38404]
[1742994997759,0.00729395,2056.0,2055.9,0.97259]
[1742994998055,0.00729395,2056.0,2055.9,3.08609]
[1742994998056,0.97987395,2056.0,2055.9,3.08609]
[1742994998663,0.00729395,2056.0,2055.7,3.9021]
[1742994998864,0.97259,2055.9,2055.8,1.4084]
[1742994999061,2.25469,2055.9,2055.8,1.4084]
[1742994999870,0.97264,2055.8,2055.7,3.9021]
[1742995000081,2.25474,2055.8,2055.7,3.9021]
[1742995001173,5.43174,2055.8,2055.7,3.2078]
[1742995010076,0.97278,2055.5,2055.4,3.2078]
[1742995010270,0.97278,2055.5,2055.4,5.34467951]
[1742995010467,0.97278,2055.5,2055.4,46.77022497]
[1742995010978,0.97278,2055.5,2055.4,45.79739497]
[1742995011277,0.97278,2055.5,2055.4,45.79747697]
[1742995011474,0.97278,2055.5,2055.4,45.79747158]
[1742995011675,0.97278,2055.5,2055.4,45.17192612]
[1742995016478,0.97278,2055.5,2055.4,44.51472612]
[1742995016676,0.97278,2055.5,2055.4,44.0078]
[1742995017878,1.3624,2055.6,2055.4,44.0078]
[1742995018083,2.43149,2055.9,2055.5,3.62757305]
[1742995018284,0.97264,2055.8,2055.7,4.18047]
[1742995018475,0.97264,2055.8,2055.7,4.68769305]
[1742995018674,0.97264,2055.8,2055.7,3.71502305]
[1742995019076,2.26584,2055.8,2055.7,3.71502305]
[1742995019374,0.97273,2055.6,2055.5,1.3946]
[1742995019576,0.97273,2055.6,2055.5,3.5007127]
[1742995020980,1.2932,2055.9,2055.6,2.43184]
[1742995021281,0.97264,2055.8,2055.7,4.68766696]
[1742995021681,0.97264,2055.8,2055.7,5.31373163]
[1742995021881,0.00729395,2056.0,2055.7,4.34109932]
[1742995022084,0.97988395,2056.0,2055.9,0.97259]
[1742995022284,0.97988395,2056.0,2055.9,2.17632465]
[1742995022772,0.00729395,2056.0,2055.9,2.17632465]
[1742995022972,0.97983395,2056.0,2055.9,1.13314733]
[1742995023177,0.97983395,2056.0,2055.9,0.62591268]
[1742995023377,0.97259,2055.9,2055.8,0.7088]
[1742995023577,3.05059,2055.9,2055.8,1.215994]
[1742995024184,0.97278,2055.5,2055.4,41.77282]
[1742995024390,0.97278,2055.5,2055.4,42.95208038]
[1742995024692,0.97278,2055.5,2055.4,43.57814835]
[1742995025687,0.97278,2055.5,2055.4,44.23314835]